bitfinex/quotes_ETHUSD_20240823
["timestamp","ask_amount","ask_price","bid_price","bid_amount"]
[1724420325756,7.52118,2659.2,2658.7,4.65457963]
[1724420325932,3.76082,2659.0,2658.7,0.89335963]
[1724420326133,3.76058,2659.2,2658.7,0.89335963]
[1724420326526,3.76067,2659.1,2658.7,0.89335963]
[1724420327146,3.76081,2659.0,2658.7,0.08652501]
[1724420327348,3.76081,2659.0,2658.6,3.76137]
[1724420327564,3.76081,2659.0,2658.7,0.08652501]
[1724420327775,3.76061,2659.2,2658.5,3.76143]
[1724420327983,3.76061,2659.2,2658.6,3.7613]
[1724420328288,7.52122,2659.2,2658.7,0.752273]
[1724420328639,3.76067,2659.1,2658.8,0.08640754]
[1724420329879,3.76061,2659.2,2658.8,0.08640754]
[1724420331140,3.76011,2659.5,2658.9,6.05985]
[1724420331395,3.76006,2659.6,2659.1,3.7606]
[1724420331540,3.76006,2659.6,2659.2,0.07520227]
[1724420331895,3.76006,2659.6,2659.2,0.08593776]
[1724420332100,3.76004,2659.6,2659.2,0.08593776]
[1724420332595,3.76012,2659.5,2659.0,4.37541575]
[1724420332810,3.76012,2659.5,2659.1,1.04352757]
[1724420333104,3.76012,2659.5,2659.2,0.08593776]
[1724420334172,3.76004,2659.6,2659.2,0.08593776]
[1724420334173,7.52012,2659.6,2659.2,0.08593776]
[1724420334393,3.76004,2659.6,2659.2,0.08593776]
[1724420335301,6.09083,2660.0,2659.2,0.08593776]
[1724420335302,7.52058,2659.4,2659.2,0.08593776]
[1724420335458,7.58128298,2659.5,2659.2,0.08593776]
[1724420335660,7.58128298,2659.5,2658.8,7.52203]
[1724420335661,3.82118298,2659.5,2658.8,7.52203]
[1724420336002,3.82118298,2659.5,2658.9,1.501203]
[1724420336199,3.82118298,2659.5,2659.0,0.08578197]
[1724420336768,3.76002,2659.6,2659.0,0.08578197]
[1724420337498,3.76026,2659.4,2659.0,0.08578197]
[1724420338001,3.76031,2659.4,2659.0,0.08578197]
[1724420338359,3.7604,2659.3,2659.0,0.08578197]
[1724420338570,7.52065,2659.4,2659.0,0.08578197]
[1724420338763,3.76059,2659.2,2659.0,0.08578197]
[1724420338995,3.76059,2659.2,2658.8,3.0]
[1724420339205,3.76082,2659.0,2658.8,3.0]
[1724420339390,3.76082,2659.0,2658.9,0.08589942]
[1724420340268,7.52094,2659.3,2658.7,7.49]
[1724420340584,4.31055,2659.2,2658.9,0.0859224]
[1724420340782,4.31055,2659.2,2659.0,0.08580495]
[1724420340991,4.31055,2659.2,2658.7,13.924359]
[1724420340992,7.52141,2659.1,2658.7,10.163129]
[1724420341305,3.76067,2659.1,2658.8,0.08603985]
[1724420341610,3.76067,2659.1,2658.6,3.76136]
[1724420341611,0.55,2659.2,2658.9,0.08598367]
[1724420341806,4.31054,2659.2,2658.7,3.0]
[1724420342007,0.55,2659.2,2658.8,0.08610113]
[1724420344170,7.5198,2659.7,2659.0,3.76071]
[1724420344498,2.2741,2660.0,2659.2,3.76052]
[1724420344499,7.51926,2659.9,2659.2,3.76052]
[1724420344701,3.75969,2659.8,2659.2,3.76052]
[1724420344902,3.75969,2659.8,2659.3,0.08554456]
[1724420345109,3.75969,2659.8,2659.2,3.76052]
[1724420345431,3.75969,2659.8,2659.3,0.08548711]
[1724420345623,4.30983,2659.7,2659.3,0.08548711]
[1724420345915,8.06973,2659.7,2659.1,4.378381]
[1724420346113,4.30983,2659.7,2659.4,0.0853697]
[1724420346339,4.30983,2659.7,2659.0,3.7607]
[1724420346340,5.1229313,2659.7,2659.0,3.7607]
[1724420346517,3.75996,2659.6,2659.5,0.08521017]
[1724420346676,3.75996,2659.6,2659.0,11.2507]
[1724420346875,3.75996,2659.6,2659.5,0.0852255]
[1724420347221,3.76051,2659.3,2659.0,7.49]
[1724420347370,3.76041,2659.3,2659.0,7.49]
[1724420349788,7.58138298,2659.5,2659.0,8.615106]
[1724420349987,7.58138298,2659.5,2659.0,1.125106]
[1724420350432,3.75998,2659.6,2658.9,3.76088]
[1724420350808,3.75998,2659.6,2659.0,3.76073]
[1724420351588,3.76013,2659.5,2658.8,3.76098]
[1724420351789,0.07487018,2659.4,2658.7,10.49]
[1724420352034,0.55,2659.4,2658.7,13.396893]
[1724420352341,7.58134298,2659.5,2658.7,20.919163]
[1724420352342,3.76048,2659.3,2658.7,20.919163]
[1724420352500,3.76048,2659.3,2658.7,20.919173]
[1724420352679,3.76048,2659.3,2658.7,17.158023]
[1724420352884,3.76048,2659.3,2658.8,0.8082536]
[1724420353119,3.76056,2659.2,2658.8,0.8082536]
[1724420354032,3.76039,2659.3,2658.8,0.8082536]
[1724420354404,3.76026,2659.4,2658.9,0.08593007]
[1724420354602,3.75996,2659.6,2659.0,3.76072]
[1724420354940,3.75996,2659.6,2659.1,2.77656019]
[1724420355485,3.75973,2659.8,2659.2,3.76048]
[1724420355726,3.75984,2659.7,2659.1,6.53722019]
[1724420356034,3.75984,2659.7,2659.2,0.08557775]
[1724420356536,3.75997,2659.6,2659.2,0.08557775]
[1724420357039,7.52001,2659.6,2659.2,0.08557775]
[1724420357218,7.52001,2659.6,2659.2,0.36322203]
[1724420357219,3.75997,2659.6,2659.2,0.36322203]
[1724420358286,7.52001,2659.6,2659.2,0.36322203]
[1724420358524,3.76012,2659.5,2659.2,0.36322203]
[1724420359201,3.75997,2659.6,2659.2,0.36322203]
[1724420359587,7.52003,2659.6,2659.2,0.36322203]
[1724420359832,3.75997,2659.6,2659.2,0.36322203]
[1724420360030,3.76038,2659.3,2659.2,0.08557775]
[1724420360341,4.31038,2659.3,2658.8,3.0996536]
[1724420360521,4.31038,2659.3,2659.2,0.08556625]
[1724420360707,4.31038,2659.3,2658.8,3.0996536]
[1724420361246,4.31038,2659.3,2658.9,0.08591857]
[1724420362008,0.55,2659.3,2658.9,0.08591857]
[1724420362203,3.76017,2659.5,2658.9,1.82958179]
[1724420362415,3.76002,2659.6,2658.9,1.82958179]
[1724420362416,3.76027,2659.4,2658.9,1.82958179]
[1724420362645,7.52061,2659.4,2658.9,1.82958179]
[1724420362790,3.76027,2659.4,2658.9,1.82958179]
[1724420362991,7.52059,2659.4,2658.9,1.82958179]
[1724420363242,3.76027,2659.4,2658.9,1.82958179]
[1724420363540,3.76027,2659.4,2659.0,0.86902954]
[1724420363740,9.87621,2659.6,2659.0,0.86902954]
[1724420363976,3.76003,2659.6,2659.1,0.08568368]
[1724420364127,3.76003,2659.6,2659.1,0.73160132]
[1724420364641,3.75989,2659.7,2659.1,0.73160132]
[1724420364788,3.75989,2659.7,2659.2,2.4082]
[1724420365137,3.75976,2659.8,2659.3,0.08544882]
[1724420365343,3.75949,2660.0,2659.3,4.15976547]
[1724420365546,3.75964,2659.9,2659.3,4.07431665]
[1724420365726,3.75949,2660.0,2659.3,0.31395665]
[1724420365727,3.75968,2659.8,2659.3,0.31395665]
[1724420365894,3.75968,2659.8,2659.4,0.08533141]
[1724420366244,3.75949,2660.0,2659.4,0.08533141]
[1724420366542,7.51902,2660.0,2659.5,2.3234]
[1724420366896,7.51902,2660.0,2659.6,0.08503534]
[1724420367209,3.75949,2660.0,2659.6,0.08503534]
[1724420367411,3.75925,2660.1,2659.6,0.08503534]
[1724420368440,3.7594,2660.0,2659.6,0.08503534]
[1724420369560,3.75925,2660.1,2659.6,0.76757906]
[1724420369702,3.75921,2660.2,2659.6,0.84276951]
[1724420369703,7.51843,2660.2,2659.6,0.84276951]
[1724420369903,3.75926,2660.1,2659.6,0.84276951]
[1724420370099,3.75921,2660.2,2659.6,0.76757906]
[1724420370334,7.51841,2660.2,2659.7,0.68510391]
[1724420370548,3.7592,2660.2,2659.7,0.76970026]
[1724420370860,7.51841,2660.2,2659.7,0.76970026]
[1724420371000,3.75933,2660.1,2659.7,0.76970026]
[1724420371630,3.75912,2660.2,2659.7,0.08459635]
[1724420371995,13.73354,2659.8,2659.7,0.08459635]
[1724420372194,13.73354,2659.8,2658.9,7.49]
[1724420372195,3.7603,2659.4,2658.9,7.49]
[1724420372333,3.7603,2659.4,2659.0,0.749]
[1724420372528,3.7603,2659.4,2659.0,0.83439911]
[1724420373580,0.07487018,2659.5,2659.0,0.08539911]
[1724420373793,2.4545,2659.8,2659.0,0.08539911]
[1724420373794,7.58185298,2659.1,2659.0,0.08539911]
[1724420373933,7.58185298,2659.1,2658.4,7.49]
[1724420373934,3.76138,2658.6,2658.4,7.49]
[1724420374128,3.76138,2658.6,2658.1,2.4505]
[1724420374334,3.76138,2658.6,2658.5,0.08604387]
[1724420374834,3.76138,2658.6,2658.1,2.4505]
[1724420375030,3.76161,2658.5,2658.2,2.32844638]
[1724420375241,3.7613,2658.7,2658.2,2.32844638]
[1724420376655,3.7613,2658.7,2658.2,0.08639638]
[1724420376656,0.07487018,2658.7,2658.2,0.08639638]
[1724420376857,3.7618,2658.3,2658.0,7.49]
[1724420377056,3.76178,2658.4,2658.3,0.08627887]
[1724420377256,3.76178,2658.4,2658.0,7.49]
[1724420377581,4.31146,2658.6,2658.3,0.08627887]
[1724420377783,4.31146,2658.6,2658.0,8.4858]
[1724420377784,3.76154,2658.5,2658.0,8.4858]
[1724420378585,3.76154,2658.5,2658.1,0.0865139]
[1724420378889,0.55,2658.4,2658.1,0.0865139]
[1724420379945,3.76129,2658.7,2658.1,0.0865139]
[1724420380149,3.76129,2658.7,2657.9,6.76228]
[1724420380384,3.76156,2658.5,2658.2,0.08639638]
[1724420380545,7.52321,2658.5,2657.9,3.0]
[1724420380748,4.38663018,2658.4,2658.3,0.08627887]
[1724420380954,4.38663018,2658.4,2657.9,3.0]
[1724420381156,4.38663018,2658.4,2658.3,0.08627887]
[1724420381393,4.38663018,2658.4,2657.9,3.0]
[1724420381542,4.38663018,2658.4,2658.3,0.08627887]
[1724420381745,0.55,2658.4,2657.9,3.0]
[1724420381957,0.55,2658.4,2658.3,0.08627887]
[1724420382593,0.55,2658.4,2658.0,0.8468]
[1724420382820,0.55,2658.4,2658.3,0.08627887]
[1724420382964,0.55,2658.4,2658.0,0.8468]
[1724420383167,0.55,2658.4,2658.3,0.08627887]
[1724420383391,0.55,2658.4,2658.0,0.8468]
[1724420383591,0.55,2658.4,2658.3,0.0867959]
[1724420384119,0.55,2658.4,2658.0,0.8468]
[1724420384405,3.76129,2658.7,2658.3,0.0867959]
[1724420384596,4.31138,2658.6,2658.0,4.60892]
[1724420384800,4.31138,2658.6,2658.4,0.0866784]
[1724420384980,4.31138,2658.6,2658.0,4.60892]
[1724420385183,4.31138,2658.6,2658.5,0.0865609]
[1724420385382,4.31138,2658.6,2658.0,3.76212]
[1724420385581,4.31138,2658.6,2658.5,0.0865609]
[1724420385906,0.55,2658.6,2658.5,0.0865609]
[1724420386111,0.55,2658.6,2658.0,8.823554]
[1724420386280,0.55,2658.6,2658.5,0.0865609]
[1724420386525,0.55,2658.6,2658.0,5.061364]
[1724420386693,0.55,2658.6,2658.5,0.0865609]
[1724420386893,0.55,2658.6,2658.0,5.061364]
[1724420387069,0.55,2658.6,2658.5,0.0865609]
[1724420387269,0.55,2658.6,2658.0,5.061364]
[1724420387470,0.55,2658.6,2658.5,0.0865609]
[1724420387669,0.55,2658.6,2658.0,5.061364]
[1724420387903,0.55,2658.6,2658.5,0.0865609]
[1724420388081,3.76129,2658.7,2658.1,0.8061364]
[1724420388412,3.76129,2658.7,2658.5,0.0865609]
[1724420388582,3.76129,2658.7,2658.1,0.8061364]
[1724420388781,3.76129,2658.7,2658.6,0.08644342]
[1724420389000,4.31129,2658.7,2658.1,4.5681064]
[1724420389202,4.31129,2658.7,2658.6,0.08644342]
[1724420389390,4.31129,2658.7,2658.0,3.76211]
[1724420389587,10.57186,2658.7,2658.6,0.08644342]
[1724420389876,3.76152,2658.5,2658.0,3.76211]
[1724420390109,3.76166,2658.4,2657.9,3.0]
[1724420390275,3.76166,2658.4,2658.1,0.08703093]
[1724420390471,3.76166,2658.4,2657.9,4.672042]
[1724420390715,3.76166,2658.4,2658.2,0.08691341]
[1724420391073,3.76152,2658.5,2657.9,4.672042]
[1724420391415,3.76152,2658.5,2658.3,0.0867959]
[1724420391715,3.76152,2658.5,2658.4,0.0866784]
[1724420392213,3.76137,2658.6,2658.0,3.76222]
[1724420392534,8.07268,2658.7,2658.1,0.8434262]
[1724420392689,0.55,2658.6,2658.1,4.69252713]
[1724420392878,4.31138,2658.6,2658.1,0.93045713]
[1724420393474,4.31138,2658.6,2658.1,3.39075713]
[1724420393724,4.31138,2658.6,2658.2,0.71528971]
[1724420394088,4.31138,2658.6,2658.3,0.0867959]
[1724420394296,7.58235298,2658.8,2658.2,4.47719971]
[1724420394473,3.761,2658.9,2658.4,0.0866784]
[1724420394677,3.76131,2658.7,2658.2,0.71528971]
[1724420394877,7.52262,2658.7,2658.5,0.0870435]
[1724420395117,7.52262,2658.7,2658.2,0.71528971]
[1724420395426,3.76138,2658.6,2658.2,0.71528971]
[1724420396123,7.52263,2658.7,2658.2,0.71528971]
[1724420397303,3.76131,2658.7,2658.2,0.71528971]
[1724420397493,3.76131,2658.7,2658.3,0.77810959]
[1724420398103,0.55,2658.8,2658.3,4.53987959]
[1724420398707,7.52211,2658.9,2658.3,4.53982959]
[1724420399222,3.76123,2658.7,2658.3,0.77810959]
[1724420399719,3.76123,2658.7,2658.4,0.08713034]
[1724420400421,3.76103,2658.9,2658.4,0.54984633]
[1724420400589,3.76124,2658.7,2658.4,0.08713034]
[1724420400783,3.76103,2658.9,2658.4,0.08713034]
[1724420401018,3.76081,2659.0,2658.4,3.84869034]
[1724420401204,7.58193298,2659.1,2658.5,2.4781]
[1724420401205,3.76075,2659.1,2658.5,2.4781]
[1724420401405,3.76088,2659.0,2658.5,2.4781]
[1724420401706,3.76088,2659.0,2658.6,0.71957339]
[1724420402892,3.76075,2659.1,2658.6,0.71957339]
[1724420403302,7.52155,2659.1,2658.6,0.71957339]
[1724420403496,3.76086,2659.0,2658.6,0.71957339]
[1724420404281,3.76102,2658.9,2658.6,0.71957339]
[1724420404485,3.76102,2658.9,2658.6,0.08689536]
[1724420407326,3.76081,2659.0,2658.6,0.08689536]
[1724420407524,3.76098,2658.9,2658.6,0.08689536]
[1724420407830,3.76123,2658.7,2658.6,0.08689536]
[1724420407987,8.14733018,2658.7,2658.6,0.08689536]
[1724420408186,8.14733018,2658.7,2657.9,2.4944]
[1724420408187,3.76181,2658.3,2657.9,2.4944]
[1724420408388,3.76181,2658.3,2657.7,3.76256]
[1724420409413,3.76181,2658.3,2657.8,3.0]
[1724420409729,3.76181,2658.3,2657.8,3.925696]
[1724420410028,11.34441298,2658.5,2657.8,3.925696]
[1724420410217,0.55,2658.4,2657.8,7.688196]
[1724420410929,0.55,2658.4,2657.9,3.76235]
[1724420411132,0.55,2658.4,2657.9,1.1450606]
[1724420412130,0.55,2658.4,2657.9,4.9073706]
[1724420412940,0.62487018,2658.4,2657.8,0.925696]
[1724420413139,0.62487018,2658.4,2657.6,9.9844]
[1724420413140,3.76223,2658.0,2657.6,7.49]
[1724420413450,7.58373298,2657.8,2657.2,3.76335]
[1724420413942,0.55,2657.7,2657.2,3.76328]
[1724420414151,3.76231,2658.0,2657.3,4.139448]
[1724420414358,2.2707,2658.3,2657.4,2.41595586]
[1724420414491,4.31195,2658.2,2657.6,3.7627]
[1724420414993,4.31195,2658.2,2657.7,0.08780484]
[1724420415218,0.55,2658.2,2657.7,3.85036484]
[1724420415420,0.55,2658.3,2657.9,2.3407]
[1724420416045,3.76158,2658.5,2658.0,0.0874522]
[1724420416363,4.3514653,2658.6,2658.0,0.0874522]
[1724420416364,4.31168,2658.4,2658.0,0.0874522]
[1724420417241,8.07344,2658.4,2658.0,0.0874522]
[1724420417530,8.07344,2658.4,2657.8,4.14744648]
[1724420417531,4.31168,2658.4,2657.8,4.14744648]
[1724420417734,0.55,2658.4,2658.1,0.08733467]
[1724420417890,0.55,2658.5,2657.9,7.52455]
[1724420418096,0.55,2658.5,2658.0,0.0874522]
[1724420418622,4.31152,2658.5,2658.0,0.0874522]
[1724420418825,0.55,2658.5,2658.0,0.0874522]
[1724420419136,0.55,2658.5,2658.0,0.51092807]
[1724420419706,3.82118298,2658.7,2658.1,2.4901]
[1724420419913,4.31145,2658.6,2658.1,2.4901]
[1724420420113,4.31145,2658.6,2658.2,0.08721715]
[1724420422058,0.55,2658.6,2658.2,0.08721715]
[1724420422199,3.7614,2658.6,2658.2,1.13971645]
[1724420422399,3.76153,2658.5,2658.2,0.08721715]
[1724420422608,3.7614,2658.6,2658.2,0.08721715]
[1724420423099,3.7609,2659.0,2658.4,3.76163]
[1724420423445,3.76095,2658.9,2658.5,2.35026848]
[1724420424113,3.76095,2658.9,2658.5,2.96147333]
[1724420424327,3.76089,2659.0,2658.5,2.96147333]
[1724420424645,0.58989296,2659.2,2658.6,0.07522514]
[1724420424795,3.76055,2659.2,2658.6,3.76127]
[1724420424995,3.76055,2659.2,2658.7,0.75890784]
[1724420425199,3.76034,2659.4,2658.7,4.59534618]
[1724420425395,3.76033,2659.4,2658.7,4.59534618]
[1724420425850,3.7604,2659.3,2658.7,4.59534618]
[1724420426141,3.04514437,2659.6,2659.1,3.76058]
[1724420426142,0.58984437,2659.6,2659.1,3.76058]
[1724420426469,2.3622,2659.9,2659.3,6.22797]
[1724420426470,3.75955,2659.9,2659.3,6.22797]
[1724420426737,2.3622,2660.2,2659.5,3.76009]
[1724420426738,3.75917,2660.2,2659.5,3.76009]
[1724420426923,0.58970967,2660.3,2659.5,1.00738714]
[1724420427099,6.05603,2660.8,2659.9,3.75942]
[1724420427303,6.05603,2660.8,2659.7,2.3841]
[1724420427304,3.75841,2660.7,2660.0,3.91950383]
[1724420427547,3.75841,2660.7,2660.0,3.84432472]
[1724420427860,3.75841,2660.7,2660.0,0.08493472]
[1724420428211,7.57933298,2660.9,2659.9,0.07518078]
[1724420428212,3.75855,2660.6,2659.9,3.83471078]
[1724420428414,3.75855,2660.6,2660.1,0.08481737]
[1724420428639,7.57933298,2660.9,2660.0,3.6015058]
[1724420428640,3.75815,2660.9,2660.0,3.6015058]
[1724420428827,0.58958247,2661.4,2660.5,3.75868]
[1724420429028,3.75742,2661.4,2660.5,3.75868]
[1724420429260,3.75742,2661.4,2660.3,6.14303]
[1724420429261,3.75772,2661.2,2660.6,0.08390526]
[1724420429575,2.2977,2661.5,2660.4,3.7588]
[1724420429576,3.75758,2661.3,2660.4,3.7588]
[1724420429714,3.75758,2661.3,2660.7,0.08358894]
[1724420429916,3.75758,2661.3,2660.5,4.37295]
[1724420430111,3.75758,2661.3,2660.6,0.08370624]
[1724420430557,3.75771,2661.2,2660.6,0.08370624]
[1724420430872,3.75802,2661.0,2660.6,0.08370624]
[1724420431153,3.75772,2661.2,2660.6,0.08370624]
[1724420431371,3.75772,2661.2,2660.4,3.0]
[1724420431372,3.82118298,2661.0,2660.3,2.3841]
[1724420431520,3.82118298,2661.0,2659.8,3.75963]
[1724420431521,3.75846,2660.7,2660.0,2.4595]
[1724420431719,3.75829,2660.8,2660.0,6.21888]
[1724420432232,3.75855,2660.6,2660.0,2.4595]
[1724420432858,3.75827,2660.8,2660.0,2.4595]
[1724420433019,4.30842,2660.7,2660.0,2.4595]
[1724420434447,4.30842,2660.7,2660.0,6.21888]
[1724420434847,4.30842,2660.7,2660.0,2.4595]
[1724420436571,4.30842,2660.7,2660.0,6.21889]
[1724420437378,0.55,2660.7,2660.1,3.75924]
[1724420437526,0.55,2660.8,2660.1,4.381024]
[1724420437878,0.55,2660.8,2660.2,3.7591]
[1724420438223,4.5157803,2661.1,2660.3,3.75885]
[1724420438424,0.55,2661.0,2660.4,6.24563]
[1724420438690,4.5157803,2661.1,2660.4,6.24563]
[1724420438981,3.75789,2661.1,2660.4,6.24563]
[1724420439184,3.75789,2661.1,2660.4,2.4869]
[1724420439348,3.75813,2660.9,2660.4,2.4869]
[1724420439951,0.751602,2660.9,2660.4,2.4869]
[1724420440254,0.751602,2660.9,2660.1,6.11576]
[1724420440255,7.51643,2660.9,2660.1,6.11576]
[1724420440569,4.30828,2660.8,2660.1,6.11576]
[1724420440766,4.30828,2660.8,2660.1,9.8749]
[1724420441080,3.75842,2660.7,2660.1,6.11574]
[1724420441427,3.75842,2660.7,2660.1,9.87488]
[1724420441630,0.55,2660.8,2660.2,3.75909]
[1724420442572,0.55,2660.8,2660.1,6.11574]
[1724420442573,3.75841,2660.7,2660.1,6.11574]
[1724420443144,7.51587,2661.1,2660.3,3.75888]
[1724420443355,0.55,2661.0,2660.5,2.3629]
[1724420444145,4.30807,2661.0,2660.5,2.3629]
[1724420444486,0.55,2661.0,2660.5,2.3629]
[1724420444656,3.75784,2661.1,2660.6,3.83564997]
[1724420444860,3.75784,2661.1,2660.6,0.07712997]
[1724420445464,3.75765,2661.3,2660.6,0.07712997]
[1724420445908,3.75786,2661.1,2660.6,0.07712997]
[1724420446201,3.75774,2661.2,2660.6,3.83559997]
[1724420446497,3.75774,2661.2,2660.7,0.61985]
[1724420446856,3.75742,2661.4,2660.8,0.07687243]
[1724420447293,0.07487018,2661.3,2660.8,0.07687243]
[1724420447467,3.75788,2661.1,2660.8,0.07687243]
[1724420448001,3.75788,2661.1,2660.9,0.07672455]
[1724420448162,3.75788,2661.1,2660.6,9.8174]
[1724420448360,3.75788,2661.1,2661.0,0.07660345]
[1724420448555,3.75801,2661.0,2660.6,9.8174]
[1724420449599,3.75778,2661.2,2660.6,9.8174]
[1724420450475,3.75749,2661.4,2660.7,3.75833]
[1724420450678,3.75764,2661.3,2660.7,3.75833]
[1724420450879,9.17498298,2661.7,2660.7,3.75833]
[1724420450880,7.51555,2661.2,2660.7,1.733435]
[1724420451087,3.75773,2661.2,2660.7,1.733435]
[1724420451482,3.75786,2661.1,2660.7,1.733435]
[1724420451692,3.75817,2660.9,2660.6,9.8174]
[1724420451869,3.75828,2660.8,2660.6,9.8174]
[1724420452071,3.7584,2660.7,2660.6,7.49]
[1724420452408,0.07487018,2661.3,2660.6,7.49]
[1724420452409,3.75806,2661.0,2660.6,7.49]
[1724420453007,7.51558,2661.2,2660.6,8.61488]
[1724420453167,3.75779,2661.2,2660.7,2.4962]
[1724420453500,7.5156,2661.2,2660.7,2.4962]
[1724420453806,3.75779,2661.2,2660.7,2.4962]
[1724420454202,3.75779,2661.2,2660.7,6.25458]
[1724420454507,3.75779,2661.2,2660.7,8.117386]
[1724420455706,3.75779,2661.2,2660.7,4.359006]
[1724420455906,3.75793,2661.1,2660.7,4.359006]
[1724420456405,3.7583,2660.8,2660.6,7.49]
[1724420457170,3.7583,2660.8,2660.4,2.4751]
[1724420457808,4.30812,2661.0,2660.4,6.23392]
[1724420458040,3.75794,2661.1,2660.6,3.75853]
[1724420458600,3.75794,2661.1,2660.5,3.75867]
[1724420458812,7.51588,2661.1,2660.6,0.999247]
[1724420459006,3.75799,2661.0,2660.6,0.999247]
[1724420459704,3.75799,2661.0,2660.7,0.07690174]
[1724420459905,3.75794,2661.1,2660.7,0.07690174]
[1724420460756,7.51591,2661.1,2660.7,0.07690174]
[1724420460911,3.75801,2661.0,2660.7,0.07690174]
[1724420463306,0.07487018,2660.6,2660.2,2.3632]
[1724420463637,3.75876,2660.5,2660.0,2.3632]
[1724420463811,3.75876,2660.5,2660.0,3.724463]
[1724420464223,0.55,2660.6,2660.1,3.75923]
[1724420464424,3.75834,2660.8,2660.1,3.75917]
[1724420464626,3.75819,2660.9,2660.3,3.75889]
[1724420464828,7.51586,2661.1,2660.5,3.75866]
[1724420465001,0.55,2661.0,2660.5,3.75866]
[1724420465208,4.30799,2661.0,2660.5,3.75866]
[1724420465608,3.75819,2660.9,2660.4,2.3632]
[1724420465802,4.30799,2661.0,2660.4,7.483169]
[1724420466530,3.75793,2661.1,2660.4,7.483209]
[1724420466704,3.75802,2661.0,2660.5,3.75867]
[1724420467300,3.75793,2661.1,2660.5,7.51728]
[1724420467505,7.51528,2661.3,2660.8,2.4852]
[1724420467706,3.75762,2661.3,2660.8,2.4852]
[1724420468067,3.75792,2661.1,2660.8,2.4852]
[1724420468341,7.51587,2661.1,2660.5,6.24387]
[1724420468500,3.75799,2661.0,2660.5,7.2365446]
[1724420468707,3.75792,2661.1,2660.5,2.4852]
[1724420468708,3.75813,2660.9,2660.5,2.4852]
[1724420468920,3.75794,2661.1,2660.5,2.4852]
[1724420469114,3.75799,2661.0,2660.5,2.4852]
[1724420469514,3.75794,2661.1,2660.5,6.24385]
[1724420469778,3.75794,2661.1,2660.5,6.24381]
[1724420469911,3.75794,2661.1,2660.6,0.7605019]
[1724420470133,3.75772,2661.2,2660.6,4.5190419]
[1724420470528,3.75765,2661.3,2660.7,3.75839]
[1724420471278,3.75782,2661.2,2660.6,0.7605019]
[1724420471619,3.75782,2661.2,2660.6,4.5190319]
[1724420471952,3.75786,2661.1,2660.7,1.07627919]
[1724420472106,3.82118298,2661.4,2660.6,0.7605019]
[1724420472311,3.75807,2661.0,2660.5,2.4852]
[1724420472616,3.75823,2660.9,2660.5,2.4852]
[1724420473276,3.75827,2660.8,2660.5,2.4852]
[1724420474872,3.75827,2660.8,2660.6,0.07708024]
[1724420475013,3.7584,2660.7,2660.6,0.07708024]
[1724420475214,3.75866,2660.6,2660.3,7.49]
[1724420475437,3.75872,2660.5,2660.3,7.49]
[1724420475643,3.75872,2660.5,2660.0,2.3367]
[1724420476174,3.75872,2660.5,2660.0,6.09608]
[1724420476462,3.75872,2660.5,2660.0,2.3367]
[1724420476742,3.758,2661.0,2660.0,2.3367]
[1724420476743,3.75792,2661.1,2660.1,0.07517999]
[1724420476892,3.75814,2660.9,2660.3,3.75888]
[1724420477085,0.55,2661.0,2660.4,3.75876]
[1724420477287,0.55,2661.0,2660.4,4.510524]
[1724420477584,4.30806,2661.0,2660.4,4.510524]
[1724420477796,3.75814,2660.9,2660.4,0.751764]
[1724420478143,3.75814,2660.9,2660.4,4.510564]
[1724420479056,3.75814,2660.9,2660.4,0.751764]
[1724420479485,0.55,2661.0,2660.4,4.510494]
[1724420479699,4.30799,2661.0,2660.5,0.8269394]
[1724420480216,3.75815,2660.9,2660.1,13.50056]
[1724420480397,3.75921,2660.2,2659.6,2.3997]
[1724420480627,8.20538316,2660.1,2659.5,7.49]
[1724420480908,8.20538316,2660.1,2659.1,2.3782]
[1724420480909,3.76011,2659.5,2659.1,2.3782]
[1724420481061,3.76011,2659.5,2659.0,7.49]
[1724420481062,3.76049,2659.3,2659.0,7.49]
[1724420481258,3.83553018,2659.2,2659.0,7.49]
[1724420481673,3.76066,2659.2,2659.0,7.49]
[1724420481877,3.83520018,2659.4,2659.0,7.49]
[1724420482079,0.55,2659.3,2659.0,7.49]
[1724420482597,0.55,2659.3,2659.1,0.07661877]
[1724420482963,0.07487018,2659.2,2659.1,0.07661877]
[1724420483160,3.76068,2659.1,2658.5,9.7592]
[1724420483359,3.83568018,2659.0,2658.6,0.07720607]
[1724420484506,9.95989298,2659.2,2658.6,0.07720607]
[1724420484662,0.55,2659.1,2658.6,0.07720607]
[1724420486262,3.76039,2659.3,2658.6,0.07720607]
[1724420486263,0.55,2659.2,2658.6,0.07720607]
[1724420487464,6.13794,2659.5,2658.6,0.68799768]
[1724420487804,3.75985,2659.7,2658.9,3.76082]
[1724420488011,3.76021,2659.5,2658.8,2.3907]
[1724420488210,3.76021,2659.5,2659.0,0.07724791]
[1724420488410,3.76021,2659.5,2658.8,2.3907]
[1724420488610,3.75985,2659.7,2658.8,2.3907]
[1724420488611,3.75985,2659.7,2659.1,0.07713046]
[1724420488844,4.751364,2659.7,2658.8,2.3907]
[1724420489116,3.75934,2660.1,2659.3,2.4847]
[1724420489413,3.75952,2660.0,2659.4,0.07672089]
[1724420489593,3.75957,2659.9,2659.4,0.07672089]
[1724420491210,3.75934,2660.1,2659.4,3.83695089]
[1724420491429,4.34871477,2660.3,2659.5,4.39216509]
[1724420491769,3.7592,2660.2,2659.5,4.46910446]
[1724420491915,3.7592,2660.2,2659.6,6.24465]
[1724420492125,4.34871477,2660.3,2659.8,3.75966]
[1724420492126,0.58969477,2660.3,2659.8,3.75966]
[1724420492419,3.75847,2660.7,2660.1,2.421]
[1724420492719,7.51758,2660.5,2660.1,2.421]
[1724420492887,7.51758,2660.5,2660.2,0.0760605]
[1724420493088,3.75884,2660.4,2660.2,0.0760605]